bitfinex/quotes_BTCUSD_20220120
["timestamp","ask_amount","ask_price","bid_price","bid_amount"]
[1642714924966,0.00128571,41658.0,41636.0,0.69369822]
[1642714925167,0.00128571,41658.0,41642.0,0.72800071]
[1642714925395,0.01256277,41676.0,41654.0,0.05]
[1642714925595,1.10334055,41684.0,41660.0,0.15124468]
[1642714925796,0.00063603,41671.0,41660.0,0.15]
[1642714925994,0.00063603,41671.0,41662.0,0.00121424]
[1642714926196,0.13152576,41687.0,41662.0,0.00121424]
[1642714926197,0.00061884,41670.0,41669.0,0.00128236]
[1642714926403,0.282,41696.0,41669.0,0.00128236]
[1642714926404,0.01607,41692.0,41670.0,1.1]
[1642714926602,0.282,41696.0,41681.0,0.00122515]
[1642714926796,0.282,41696.0,41678.0,0.49151635]
[1642714926797,0.00060855,41679.0,41678.0,0.49151635]
[1642714926995,0.282,41696.0,41686.0,0.00124637]
[1642714927200,0.668585,41688.0,41687.0,0.111111]
[1642714927398,0.668585,41688.0,41686.0,0.00124637]
[1642714927595,0.66865376,41688.0,41686.0,0.00124637]
[1642714927996,0.16865376,41688.0,41686.0,0.00124637]
[1642714928197,0.0048078,41695.0,41687.0,0.21427017]
[1642714928396,0.0048078,41695.0,41694.0,0.0012575]
[1642714928597,0.01005351,41701.0,41694.0,0.0012575]
[1642714928598,0.01005351,41701.0,41695.0,0.9]
[1642714928800,0.09961237,41728.0,41695.0,0.9]
[1642714928801,5.75182477,41730.0,41714.0,0.00125453]
[1642714929003,0.00520656,41729.0,41714.0,8.39e-06]
[1642714929246,5.99515372,41730.0,41725.0,0.19971795]
[1642714929247,3.2480633,41730.0,41725.0,0.19971795]
[1642714929448,3.2480633,41730.0,41725.0,0.00128662]
[1642714929449,0.0006876,41728.0,41725.0,0.00128662]
[1642714929745,3.2480633,41730.0,41727.0,0.00123095]
[1642714929746,3.2405069,41730.0,41727.0,0.00123095]
[1642714929944,3.2405069,41730.0,41717.0,0.64123311]
[1642714930145,3.2395069,41730.0,41721.0,0.24691079]
[1642714930353,1.75608182,41729.0,41717.0,0.119774]
[1642714930547,0.00121284,41722.0,41701.0,0.06021639]
[1642714930747,0.409754,41721.0,41701.0,0.00030039]
[1642714930945,0.26251782,41720.0,41702.0,0.00027504]
[1642714931248,0.26251782,41720.0,41714.0,0.00129719]
[1642714931446,0.29968919,41721.0,41702.0,0.00027504]
[1642714931447,0.29968919,41721.0,41712.0,0.20736449]
[1642714931651,0.29968919,41721.0,41704.0,0.00128659]
[1642714931652,0.26381215,41720.0,41704.0,0.00128659]
[1642714931844,0.26381215,41720.0,41713.0,8.595e-05]
[1642714932045,0.29968919,41721.0,41704.0,0.00128659]
[1642714932046,0.29968919,41721.0,41710.0,0.00123708]
[1642714932447,0.01619,41728.0,41720.0,0.00124379]
[1642714932651,0.0012,41746.0,41725.0,0.9]
[1642714932652,0.26251782,41740.0,41725.0,0.9]
[1642714932901,0.26251782,41740.0,41729.0,0.11213811]
[1642714933101,0.0012,41746.0,41729.0,0.11213811]
[1642714933102,0.00013942,41737.0,41733.0,0.3815]
[1642714933301,0.0012,41746.0,41729.0,0.00128311]
[1642714933302,0.0012,41746.0,41737.0,0.75]
[1642714933499,0.0012,41746.0,41737.0,0.431461]
[1642714933700,0.0012,41746.0,41741.0,0.110814]
[1642714933900,0.0012,41746.0,41745.0,0.381382]
[1642714934101,0.52851636,41771.0,41745.0,0.381382]
[1642714934102,0.26251782,41762.0,41746.0,0.9]
[1642714934305,6e-05,41771.0,41746.0,0.9]
[1642714934306,0.00129406,41770.0,41750.0,0.381321]
[1642714934502,0.00129406,41770.0,41757.0,0.21770924]
[1642714934801,0.00113003,41780.0,41769.0,0.20463526]
[1642714935002,0.56133775,41799.0,41776.0,0.00128295]
[1642714935003,0.00051003,41783.0,41776.0,0.00128295]
[1642714935800,0.0999,41799.0,41781.0,0.00121167]
[1642714936000,0.64314971,41798.0,41781.0,0.00121167]
[1642714936198,0.64314971,41798.0,41766.0,0.0402]
[1642714936199,0.00092827,41791.0,41775.0,0.00128965]
[1642714936399,0.381499,41790.0,41775.0,0.00128965]
[1642714936644,0.26251782,41789.0,41775.0,0.00128965]
[1642714936846,0.23767281,41787.0,41775.0,0.00128965]
[1642714937044,0.64401682,41786.0,41775.0,9.65e-06]
[1642714937244,0.64401682,41786.0,41754.0,0.0402]
[1642714937245,6e-05,41773.0,41754.0,0.0402]
[1642714937645,6e-05,41773.0,41737.0,0.00408]
[1642714937646,0.00060166,41772.0,41758.0,0.00124973]
[1642714938045,0.00058447,41771.0,41762.0,0.17425969]
[1642714938245,0.00058447,41771.0,41763.0,0.38270677]
[1642714938444,0.00056728,41770.0,41763.0,0.38270677]
[1642714938844,0.001752,41769.0,41764.0,0.381491]
[1642714939247,0.00120191,41769.0,41759.0,0.00122483]
[1642714939451,0.00120191,41769.0,41750.0,0.0402]
[1642714939452,0.3820319,41768.0,41750.0,0.0402]
[1642714939661,0.00125283,41763.0,41740.0,0.0011]
[1642714939952,0.26251782,41767.0,41740.0,0.0011]
[1642714939953,0.00122715,41759.0,41742.0,0.05124297]
[1642714940150,0.00123908,41750.0,41740.0,0.0011]
[1642714940436,0.00120192,41766.0,41747.0,0.19080957]
[1642714940437,0.000361,41758.0,41747.0,0.19080957]
[1642714940740,0.00120192,41766.0,41764.0,0.00122933]
[1642714940934,0.2838,41797.0,41766.0,1.1]
[1642714941135,0.2838,41797.0,41767.0,0.66704982]
[1642714941432,0.2838,41797.0,41788.0,0.22487427]
[1642714941637,0.1,41809.0,41788.0,0.22487427]
[1642714941837,0.42,41816.0,41796.0,0.00126315]
[1642714942039,0.04555462,41830.0,41796.0,0.00126315]
[1642714942040,0.00097984,41806.0,41799.0,0.1]
[1642714942234,0.42,41825.0,41805.0,0.00127435]
[1642714942433,0.0010779,41808.0,41807.0,0.18745005]
[1642714942632,0.0010779,41808.0,41807.0,0.56894905]
[1642714942834,0.00431096,41814.0,41808.0,1.1]
[1642714943035,0.00431096,41814.0,41812.0,0.158654]
[1642714943234,7.86,41829.0,41814.0,0.00431]
[1642714943434,7.86,41829.0,41819.0,0.00121565]
[1642714943633,7.86,41829.0,41827.0,0.00122262]
[1642714943831,3.559776,41828.0,41827.0,0.00068685]
[1642714944031,7.86,41829.0,41818.0,0.059747]
[1642714944248,7.86,41829.0,41823.0,0.00121028]
[1642714944449,7.382121,41829.0,41828.0,0.00124669]
[1642714944653,7.382121,41829.0,41828.0,1.27340715]
[1642714944852,7.38251638,41829.0,41828.0,0.42528614]
[1642714945049,7.38251638,41829.0,41828.0,0.30312568]
[1642714945050,4.35948717,41829.0,41828.0,0.30312568]
[1642714945249,4.35948717,41829.0,41828.0,0.00124669]
[1642714945453,4.35948717,41829.0,41820.0,0.00125164]
[1642714945454,4.74098617,41829.0,41820.0,0.00125164]
[1642714945653,4.74098617,41829.0,41812.0,0.00366]
[1642714945654,0.64401682,41828.0,41815.0,0.01199]
[1642714945852,0.26289601,41828.0,41815.0,0.02829]
[1642714946054,0.29821748,41823.0,41813.0,0.16942457]
[1642714946249,0.23002478,41816.0,41812.0,0.01199]
[1642714946651,0.00015471,41815.0,41812.0,0.01199]
[1642714946851,0.26267253,41815.0,41814.0,0.0163]
[1642714947051,0.26251782,41822.0,41814.0,0.0163]
[1642714947255,0.0012406,41824.0,41815.0,0.01199]
[1642714947256,1.10120176,41816.0,41815.0,0.01199]
[1642714947452,4.30403178,41829.0,41817.0,1.1]
[1642714947652,3.82617878,41829.0,41828.0,0.00123033]
[1642714947896,3.82617878,41829.0,41828.0,0.00122989]
[1642714948099,3.82617878,41829.0,41828.0,0.21565892]
[1642714948297,3.34832878,41829.0,41828.0,0.21565892]
[1642714948698,2.87049578,41829.0,41828.0,1.35082763]
[1642714948900,2.87049578,41829.0,41828.0,0.00122989]
[1642714949104,2.87049578,41829.0,41816.0,0.00125244]
[1642714949304,0.26251782,41828.0,41810.0,0.00516787]
[1642714949499,0.26251782,41828.0,41797.0,0.09144564]
[1642714949500,0.26289601,41828.0,41811.0,0.05]
[1642714949703,0.00123138,41821.0,41811.0,0.05]
[1642714950005,0.24535852,41818.0,41813.0,0.1519045]
[1642714950202,0.24035852,41818.0,41803.0,0.00121173]
[1642714950401,0.00018909,41817.0,41803.0,0.00121173]
[1642714950602,0.26270691,41817.0,41808.0,0.00122757]
[1642714950800,0.0001719,41816.0,41808.0,0.00122757]
[1642714951005,0.0001719,41816.0,41800.0,1.071e-05]
[1642714951006,0.26593361,41801.0,41800.0,1.071e-05]
[1642714951204,0.26593361,41801.0,41795.0,0.00509914]
[1642714951205,0.0012698,41799.0,41792.0,0.05]
[1642714951406,0.29892762,41799.0,41792.0,0.05]
[1642714951644,0.29892762,41799.0,41793.0,10.0]
[1642714951645,0.65326492,41798.0,41793.0,10.0]
[1642714951947,0.00129514,41794.0,41778.0,0.001]
[1642714952147,0.27192738,41794.0,41793.0,7.34e-06]
[1642714952344,0.00127442,41780.0,41779.0,6.6e-07]
[1642714952547,0.00127442,41780.0,41775.0,0.05]
[1642714952745,0.00127442,41780.0,41772.0,0.001]
[1642714952746,0.00123577,41774.0,41772.0,0.001]
[1642714952950,0.00123577,41774.0,41764.0,0.05]
[1642714952951,0.08826577,41774.0,41771.0,0.001]
[1642714953147,0.366434,41773.0,41771.0,0.001]
[1642714953347,0.64395782,41772.0,41771.0,0.001]
[1642714953749,0.78934456,41772.0,41771.0,0.00113752]
[1642714953947,1.78934456,41772.0,41771.0,0.00113752]
[1642714954155,1.78934456,41772.0,41736.0,0.02393844]
[1642714954156,0.00013,41771.0,41725.0,0.10032571]
[1642714954349,0.0402,41770.0,41746.0,0.05]
[1642714954551,0.64395782,41769.0,41746.0,0.05]
[1642714954748,0.17275894,41763.0,41746.0,0.21087067]
[1642714954949,0.17275894,41763.0,41741.0,0.00051571]
[1642714954950,0.00120414,41750.0,41745.0,0.17973737]
[1642714955155,0.0402,41756.0,41751.0,0.00104553]
[1642714955609,0.0392,41756.0,41752.0,0.00032661]
[1642714955809,0.0392,41756.0,41753.0,0.124179]
[1642714955810,0.3392,41756.0,41753.0,0.124179]
[1642714956012,0.3392,41756.0,41753.0,0.17007637]
[1642714956210,0.3392,41756.0,41755.0,0.22303928]
[1642714956416,0.00127808,41755.0,41754.0,0.00029223]
[1642714956611,0.00127808,41755.0,41751.0,0.00214553]
[1642714957010,0.00127808,41755.0,41753.0,7.728e-05]
[1642714957213,0.00127808,41755.0,41754.0,0.20458465]
[1642714957515,0.00127808,41755.0,41754.0,0.20487688]
[1642714957715,0.0237,41755.0,41754.0,0.32905188]
[1642714957912,0.0237,41755.0,41754.0,0.92905188]
[1642714958111,0.0237,41755.0,41754.0,0.32905188]
[1642714958512,0.0237,41755.0,41754.0,0.32515014]
[1642714958717,0.0237,41755.0,41754.0,0.12446723]
[1642714958917,0.0237,41755.0,41753.0,2.23e-06]
[1642714958918,0.38144,41754.0,41753.0,2.23e-06]
[1642714959147,0.39462117,41754.0,41735.0,0.04978895]
[1642714959348,0.0012695,41743.0,41735.0,0.04978895]
[1642714959551,1.1,41742.0,41735.0,0.04029428]
[1642714959744,0.22898469,41740.0,41735.0,0.04029428]
[1642714959946,0.00126822,41737.0,41726.0,0.05]
[1642714960348,0.00126822,41737.0,41727.0,0.00015471]
[1642714960749,8.595e-05,41741.0,41736.0,0.15033869]
[1642714961147,6.876e-05,41740.0,41736.0,0.15033869]
[1642714961347,0.00120888,41748.0,41740.0,3.882e-05]
[1642714961548,0.001251,41748.0,41740.0,3.882e-05]
[1642714961750,0.001251,41748.0,41743.0,0.20334822]
[1642714961751,0.0011135,41748.0,41743.0,0.20334822]
[1642714961949,0.29545286,41753.0,41740.0,3.882e-05]
[1642714962153,0.00123674,41752.0,41740.0,3.882e-05]
[1642714962449,0.00144303,41752.0,41740.0,3.882e-05]
[1642714962650,0.46837888,41754.0,41740.0,3.882e-05]
[1642714962651,0.00122015,41746.0,41740.0,3.882e-05]
[1642714962901,0.38144,41745.0,41744.0,7.712e-05]
[1642714963094,0.38152595,41745.0,41744.0,7.712e-05]
[1642714963299,0.7,41744.0,41740.0,3.882e-05]
[1642714963495,0.38144,41743.0,41740.0,3.882e-05]
[1642714963693,0.38144,41743.0,41737.0,0.16794493]
[1642714963694,0.39341,41743.0,41737.0,0.16794493]
[1642714963893,0.39341,41743.0,41727.0,0.00015471]
[1642714964095,0.00125849,41741.0,41727.0,0.00015471]
[1642714964295,0.00129744,41738.0,41726.0,0.00024066]
[1642714964494,0.00129744,41738.0,41727.0,0.124289]
[1642714964996,0.19417006,41737.0,41728.0,0.00020628]
[1642714965196,0.00128769,41733.0,41728.0,0.00020628]
[1642714965401,0.41890546,41732.0,41723.0,0.00029223]
[1642714965596,0.41890546,41732.0,41710.0,0.0011]
[1642714965597,0.00129992,41728.0,41710.0,0.0011]
[1642714965795,0.27762066,41714.0,41710.0,0.0011]
[1642714966000,0.50910189,41727.0,41717.0,0.00010314]
[1642714966001,0.29733554,41721.0,41717.0,0.00010314]
[1642714966194,0.02479,41724.0,41717.0,0.00010314]
[1642714966195,0.63737508,41720.0,41717.0,0.00010314]
[1642714966395,0.2462245,41719.0,41717.0,0.00010314]
[1642714966649,0.2462245,41719.0,41710.0,0.0011]
[1642714966650,1.78353776,41718.0,41714.0,0.00015471]
[1642714966850,0.38144,41714.0,41710.0,4.145e-05]
[1642714967151,0.35476222,41718.0,41700.0,0.0002]
[1642714967152,1.1,41709.0,41700.0,0.0002]
[1642714967350,1.1,41709.0,41679.0,0.0011]
[1642714967351,1.15995172,41706.0,41693.0,0.00123736]
[1642714967549,1.15995172,41706.0,41679.0,0.0011]
[1642714967550,0.20458685,41694.0,41679.0,0.0011]
[1642714967752,0.67877554,41693.0,41681.0,0.00124729]
[1642714967951,0.67877554,41693.0,41687.0,0.00042975]
[1642714968149,0.67877554,41693.0,41688.0,0.05]
[1642714968349,0.29733554,41693.0,41688.0,2.058191]
[1642714968550,0.29733554,41693.0,41688.0,1.92426837]
[1642714968551,1.1,41692.0,41688.0,1.92426837]
[1642714968748,1.1,41692.0,41679.0,0.0011]
[1642714968749,0.059983,41687.0,41679.0,0.0011]
[1642714968949,0.059983,41687.0,41675.0,0.05367489]
[1642714968950,0.79881554,41686.0,41675.0,0.05367489]
[1642714969149,0.00120488,41678.0,41675.0,0.05367489]
[1642714969349,0.29733554,41686.0,41685.0,0.00171132]
[1642714969547,0.30122351,41687.0,41679.0,0.03900756]
[1642714969748,0.30122351,41687.0,41685.0,6.876e-05]
[1642714970151,0.00122351,41687.0,41685.0,6.876e-05]
[1642714970393,0.0402,41691.0,41684.0,0.19298586]
[1642714970797,0.0012772,41698.0,41685.0,0.074585]
[1642714970798,6.876e-05,41690.0,41685.0,0.074585]
[1642714971194,0.00020628,41689.0,41684.0,0.19298586]
[1642714971396,0.00020628,41689.0,41685.0,0.00144144]
[1642714971596,0.00013752,41693.0,41686.0,0.074574]
[1642714971799,1.1,41692.0,41682.0,0.00174082]
[1642714972001,0.001235,41687.0,41682.0,0.00174082]
[1642714972202,1.1,41685.0,41672.0,0.0011]
[1642714972500,1.1,41685.0,41669.0,6.29e-06]
[1642714972501,1.1,41683.0,41669.0,6.29e-06]
[1642714972697,1.1,41683.0,41659.0,0.0511]
[1642714972698,0.00125389,41674.0,41659.0,6.29e-06]
[1642714972904,0.12000743,41670.0,41652.0,0.001]
[1642714973100,0.29733554,41669.0,41660.0,0.00022347]
[1642714973296,0.2343453,41673.0,41660.0,0.00022347]
[1642714973297,0.24658961,41662.0,41660.0,0.00022347]
[1642714973496,0.24658961,41662.0,41651.0,0.186036]
[1642714973697,0.29733554,41661.0,41651.0,0.14410658]
[1642714973899,0.29733554,41660.0,41652.0,0.00013752]
[1642714974160,0.29733554,41660.0,41652.0,1.32191452]
[1642714974161,0.00124689,41658.0,41652.0,1.32191452]
[1642714974358,0.21968205,41654.0,41651.0,0.00015471]
[1642714974557,0.64102279,41653.0,41650.0,0.0002]
[1642714974759,0.64102279,41653.0,41652.0,4.679938]
[1642714974960,0.600283,41681.0,41680.0,2.65907028]
[1642714975159,0.600283,41681.0,41652.0,6.37277352]
[1642714975160,0.120025,41675.0,41652.0,6.37277352]
[1642714975362,0.56888827,41674.0,41652.0,0.00013752]
[1642714975664,0.56888827,41674.0,41650.0,0.0002]
[1642714975665,0.120031,41665.0,41651.0,0.00015471]
[1642714975864,0.120031,41665.0,41637.0,0.0011]
[1642714975865,1.1,41660.0,41637.0,0.0011]
[1642714976063,0.02519,41657.0,41620.0,0.05366]
[1642714976264,0.51909,41651.0,41631.0,0.00010752]
[1642714976562,0.18176793,41648.0,41632.0,0.00018909]
[1642714976760,0.060052,41642.0,41615.0,0.00120897]
[1642714976963,0.25273695,41641.0,41636.0,0.20572363]
[1642714977263,0.20906673,41640.0,41636.0,0.15291273]
[1642714977461,0.0402,41643.0,41640.0,0.11061172]
[1642714977660,0.0402,41643.0,41642.0,0.16344751]
[1642714977923,0.0402,41643.0,41642.0,0.34482271]
[1642714978115,0.0402,41643.0,41642.0,0.42331971]
[1642714978319,0.0402,41643.0,41642.0,0.078497]
[1642714978518,0.0402,41643.0,41640.0,0.11061172]
[1642714978717,0.29733554,41642.0,41631.0,0.0012238]
[1642714978924,0.381538,41641.0,41621.0,0.00018909]
[1642714979115,0.477688,41641.0,41632.0,0.00013752]
[1642714979315,0.477688,41641.0,41619.0,0.22697645]
[1642714979316,0.25582361,41640.0,41619.0,0.22697645]
[1642714979515,0.67887354,41639.0,41619.0,0.22697645]
[1642714979717,0.05727,41642.0,41619.0,0.22697645]
[1642714979718,0.0402,41642.0,41638.0,0.21086911]
[1642714979917,0.01679526,41639.0,41638.0,0.21086911]
[1642714980118,0.01679526,41639.0,41638.0,0.28935911]
[1642714980518,0.05,41642.0,41638.0,0.28935911]
[1642714980519,0.05,41642.0,41638.0,2.02846901]
[1642714980721,0.28590896,41659.0,41638.0,2.02846901]
[1642714980722,0.23170122,41663.0,41642.0,1.1]
[1642714980923,0.29733554,41662.0,41642.0,0.70762004]
[1642714981119,0.29733554,41662.0,41643.0,0.00121677]
[1642714981120,0.00010314,41650.0,41643.0,0.00121677]
[1642714981317,0.00010314,41650.0,41644.0,0.078468]
[1642714981518,0.05,41651.0,41644.0,0.078468]
[1642714981519,8.595e-05,41649.0,41644.0,0.078468]
[1642714981759,8.595e-05,41649.0,41639.0,8.595e-05]
[1642714981957,0.38160676,41648.0,41639.0,8.595e-05]
[1642714982156,0.38160676,41648.0,41642.0,0.00149298]
[1642714982356,0.308029,41647.0,41642.0,0.00149298]
[1642714982556,0.308029,41647.0,41623.0,0.23338283]
[1642714982557,0.23662216,41641.0,41623.0,0.23338283]
[1642714982758,0.23662216,41641.0,41616.0,0.0011]
[1642714982759,0.67887354,41640.0,41624.0,0.20067671]
[1642714982955,0.05,41638.0,41624.0,0.00025785]
[1642714983158,0.29733554,41637.0,41624.0,0.00025785]
[1642714983356,0.381538,41636.0,41623.0,0.00027504]
[1642714983560,0.65,41624.0,41623.0,0.00027504]
[1642714983755,0.05,41627.0,41621.0,0.00030942]
[1642714984156,0.381538,41626.0,41621.0,0.00030942]
[1642714984659,0.05,41627.0,41621.0,0.00030942]
[1642714984956,0.05,41627.0,41622.0,5.61801631]
[1642714985155,0.05,41627.0,41623.0,0.25958356]
[1642714985401,0.05,41627.0,41623.0,0.07882004]
[1642714985608,0.28244984,41626.0,41624.0,3.79231]
[1642714985800,0.6331456,41629.0,41624.0,0.158813]
[1642714985999,0.6331456,41629.0,41625.0,6.6e-07]
[1642714986203,0.6331456,41629.0,41623.0,0.00012971]
[1642714986204,0.381538,41625.0,41623.0,1.631e-05]
[1642714986408,0.381538,41622.0,41618.0,0.01005351]
[1642714986601,0.55,41618.0,41604.0,0.22308615]
[1642714986800,0.55,41618.0,41604.0,0.0011]
[1642714986801,0.3365946,41616.0,41604.0,0.0011]
[1642714987000,0.43146191,41615.0,41604.0,0.0011]
[1642714987203,0.01201,41614.0,41604.0,0.0011]
[1642714987501,0.381571,41613.0,41604.0,0.0011]
[1642714987703,0.05,41615.0,41607.0,0.25763242]
[1642714988004,0.05,41615.0,41614.0,0.078578]
[1642714988005,0.045,41615.0,41614.0,0.078578]
[1642714988200,0.045,41615.0,41614.0,0.078575]
[1642714988401,0.045,41615.0,41614.0,0.00018909]
[1642714988804,0.045,41615.0,41614.0,0.381571]
[1642714989459,0.05,41618.0,41615.0,0.004505]
[1642714989664,0.05,41618.0,41616.0,0.078544]
[1642714989860,0.05,41618.0,41616.0,0.00015471]
[1642714990061,0.05,41618.0,41617.0,0.00013752]
[1642714990259,0.05,41618.0,41616.0,0.00015471]
[1642714990260,1.84323592,41618.0,41616.0,0.00015471]
[1642714990458,0.32547706,41617.0,41616.0,0.00015471]
[1642714990660,0.70704806,41617.0,41616.0,0.00015471]
[1642714990858,0.71905806,41617.0,41616.0,0.00015471]
[1642714991260,0.381571,41617.0,41616.0,0.00015471]
[1642714991462,0.96009515,41617.0,41616.0,0.00015471]
[1642714991760,0.66924733,41617.0,41616.0,0.00025471]
[1642714992062,0.381571,41617.0,41616.0,0.00025471]
[1642714992360,1.481571,41617.0,41616.0,0.00025471]
[1642714992561,1.481571,41617.0,41615.0,0.004505]
[1642714992562,0.7,41616.0,41615.0,0.004505]
[1642714992760,1.081571,41616.0,41615.0,0.004505]
[1642714992996,0.4,41615.0,41606.0,0.18586108]
[1642714993196,0.793581,41615.0,41605.0,0.00016964]
[1642714993396,0.793581,41615.0,41607.0,0.00015472]
[1642714993397,0.05,41610.0,41607.0,0.00015472]
[1642714993595,0.381571,41609.0,41607.0,0.00015472]
[1642714994197,0.63115059,41609.0,41607.0,0.00015472]
[1642714994399,0.63115059,41609.0,41605.0,0.0001891]
[1642714994599,0.4,41608.0,41584.0,0.04442603]
[1642714994798,0.4,41608.0,41585.0,0.01202]
[1642714994998,0.4,41608.0,41585.0,0.0123638]
[1642714994999,0.05557397,41601.0,41585.0,0.0123638]
[1642714995206,0.05557397,41601.0,41585.0,0.0003438]
[1642714995207,0.19240083,41592.0,41585.0,0.0003438]
[1642714995400,0.55557397,41589.0,41588.0,0.00074702]
[1642714995601,1.18338244,41589.0,41588.0,0.00074702]
[1642714995798,1.18338244,41589.0,41588.0,0.00103925]
[1642714996300,1.18338244,41589.0,41562.0,0.001]
[1642714996301,0.95,41587.0,41562.0,0.001]
[1642714996504,0.80823722,41586.0,41584.0,0.00098317]
[1642714996754,0.80823722,41586.0,41562.0,0.001]
[1642714996755,0.28708934,41574.0,41562.0,0.001]
[1642714996955,0.05,41572.0,41562.0,0.001]
[1642714997154,0.32921117,41571.0,41565.0,1.75728452]
[1642714997357,0.32921117,41571.0,41562.0,0.001]
[1642714997358,0.00124088,41566.0,41562.0,0.001]
[1642714997557,0.59509415,41565.0,41562.0,0.001]
[1642714997753,0.59509415,41565.0,41552.0,0.0021]
[1642714997754,0.86473091,41565.0,41559.0,0.0001]
[1642714997953,0.31188538,41564.0,41559.0,0.0001]
[1642714998154,0.393706,41563.0,41560.0,8.595e-05]
[1642714998354,0.38291243,41561.0,41560.0,8.595e-05]
[1642714998656,0.38291243,41561.0,41552.0,0.0021]
[1642714998657,0.381686,41560.0,41552.0,0.0021]
[1642714998856,0.393706,41560.0,41552.0,0.0021]
[1642714999058,0.05,41557.0,41553.0,0.00012033]
[1642714999456,0.05,41557.0,41556.0,0.19794007]
[1642714999662,0.42,41563.0,41556.0,0.18214007]
[1642714999858,0.42,41563.0,41557.0,0.31188538]
[1642714999859,0.05,41561.0,41557.0,0.31188538]
[1642715000064,0.05,41565.0,41562.0,1.13835786]
[1642715000260,0.05,41565.0,41564.0,0.381686]
[1642715000505,0.08027656,41585.0,41564.0,0.381686]
[1642715000506,0.01202,41602.0,41578.0,0.34310309]
[1642715000700,0.01202,41602.0,41579.0,0.5892499]
[1642715000701,0.05,41583.0,41579.0,0.5892499]
[1642715000902,0.05,41583.0,41582.0,0.381686]
[1642715001097,0.05,41583.0,41582.0,0.571886]
[1642715001297,9.42e-06,41583.0,41582.0,0.571886]
[1642715001500,0.05,41587.0,41584.0,0.01634]
[1642715001702,0.01202,41618.0,41600.0,0.23633665]
[1642715001902,0.05,41604.0,41600.0,0.54653676]
[1642715002098,0.01202,41625.0,41603.0,0.381686]
[1642715002296,0.04,41617.0,41606.0,0.00120024]
[1642715002499,0.04,41617.0,41607.0,0.381686]
[1642715002699,0.00056728,41616.0,41607.0,0.381686]
[1642715003098,0.26802399,41614.0,41607.0,0.381686]
[1642715003298,0.26302399,41614.0,41612.0,0.18306647]
[1642715003498,0.00051571,41613.0,41606.0,0.00120024]
[1642715003700,0.381686,41612.0,41606.0,6.735e-05]
[1642715003899,0.05,41608.0,41606.0,6.735e-05]
[1642715004148,0.393706,41607.0,41606.0,6.735e-05]
[1642715004351,0.37709856,41607.0,41606.0,6.735e-05]
[1642715004747,0.70790507,41607.0,41595.0,0.00126213]
[1642715004949,0.43718556,41607.0,41600.0,0.2]
[1642715005147,0.29036,41608.0,41602.0,0.00092017]
[1642715005148,0.00039537,41606.0,41602.0,0.00092017]
[1642715005549,0.38191418,41605.0,41600.0,0.19592017]
[1642715005952,0.30958179,41604.0,41600.0,0.19592017]
[1642715006150,0.00036099,41604.0,41600.0,0.19592017]
[1642715006348,0.0003438,41603.0,41600.0,0.19592017]
[1642715006551,0.3818798,41603.0,41600.0,0.19592017]
[1642715006749,0.060089,41604.0,41600.0,0.19592017]
[1642715006750,1.493556,41601.0,41600.0,0.19592017]
[1642715006957,1.493556,41601.0,41582.0,2.60317879]
[1642715006958,1.493556,41601.0,41582.0,0.00030251]
[1642715006959,0.19592,41600.0,41582.0,0.00030251]
[1642715007151,0.73568233,41599.0,41582.0,0.00030251]
[1642715007349,0.73568233,41599.0,41578.0,0.00029077]
[1642715007350,0.2708529,41588.0,41578.0,0.00029077]
[1642715007549,0.3203984,41587.0,41578.0,0.00029077]
[1642715007752,0.05,41584.0,41579.0,6.876e-05]
[1642715008011,0.31002054,41583.0,41579.0,6.876e-05]
[1642715008209,0.381536,41582.0,41579.0,6.876e-05]
[1642715008411,0.05,41584.0,41579.0,6.876e-05]
[1642715008613,0.05,41584.0,41579.0,0.00017401]
[1642715008912,0.05,41584.0,41580.0,0.84386217]
[1642715009308,0.05,41584.0,41581.0,0.20044273]
[1642715009516,0.32222963,41594.0,41582.0,0.381536]
[1642715009517,0.05,41590.0,41582.0,0.381536]
[1642715009710,0.05,41590.0,41583.0,0.381536]
[1642715009914,0.00010314,41589.0,41585.0,0.00120801]
[1642715010111,4.314e-05,41589.0,41588.0,1.281536]
[1642715010310,0.01239111,41590.0,41588.0,1.80000318]
[1642715010510,0.01239111,41590.0,41589.0,0.381536]
[1642715010909,0.01245144,41590.0,41589.0,0.381536]
[1642715011311,0.004,41600.0,41589.0,0.381536]
[1642715011312,0.004,41600.0,41590.0,1.1]
[1642715011511,0.004,41600.0,41591.0,0.3828144]
[1642715011512,0.05,41597.0,41591.0,0.3828144]
[1642715011744,0.02737635,41597.0,41596.0,0.2506323]
[1642715011946,0.004,41600.0,41596.0,0.2506323]
[1642715011947,0.05000471,41600.0,41599.0,1.481536]
[1642715012150,0.00120227,41604.0,41600.0,1.1]
[1642715012342,0.05120227,41604.0,41602.0,0.18019092]
[1642715012544,0.00012033,41606.0,41604.0,0.75]
[1642715012743,0.00012033,41606.0,41605.0,0.98014024]
[1642715012943,0.05,41607.0,41605.0,0.58014024]
[1642715013145,0.05,41607.0,41605.0,0.57450119]
[1642715013946,0.04990793,41607.0,41605.0,0.57450119]
[1642715014144,0.27234591,41615.0,41605.0,0.57450119]
[1642715014344,0.05,41612.0,41605.0,0.19860424]
[1642715014546,0.00109959,41608.0,41605.0,0.19860424]
[1642715014747,0.00109959,41608.0,41590.0,1.1]
[1642715014748,0.00109959,41608.0,41594.0,0.00129357]
[1642715014948,0.00013752,41607.0,41594.0,0.00129357]
[1642715015147,0.01215752,41607.0,41595.0,0.38157676]
[1642715015401,0.00109959,41608.0,41597.0,0.20272762]
[1642715015602,0.05,41603.0,41598.0,0.60259259]
[1642715015803,0.05,41603.0,41599.0,0.18860577]
[1642715016003,0.05,41603.0,41600.0,0.381508]
[1642715016201,0.05,41603.0,41600.0,0.38161114]
[1642715016403,0.05,41603.0,41601.0,8.595e-05]
[1642715016606,0.05109951,41606.0,41602.0,0.381508]
[1642715016807,0.05,41606.0,41602.0,0.381508]
[1642715017003,0.05120242,41606.0,41602.0,0.381508]
[1642715017207,0.05120242,41606.0,41602.0,0.00029077]
[1642715017409,1.324774,41603.0,41602.0,7.7e-07]
[1642715017605,1.324774,41603.0,41598.0,0.00093273]
[1642715017606,1.331508,41602.0,41598.0,0.00093273]
[1642715017805,0.381508,41599.0,41598.0,0.00093273]
[1642715018005,0.381508,41599.0,41579.0,0.00225627]
[1642715018006,0.6942476,41599.0,41579.0,0.001]
[1642715018208,0.20277777,41597.0,41596.0,0.00093282]